bitfinex/quotes_SOLUSD_20240826
["timestamp","ask_amount","ask_price","bid_price","bid_amount"]
[1724639129480,6.3053,158.6,158.55,6.94576772]
[1724639129879,0.8185039,158.62,158.55,0.63876772]
[1724639130092,0.8185039,158.62,158.55,20.63876772]
[1724639130272,0.8185039,158.62,158.56,45.0]
[1724639130594,0.8185039,158.62,158.57,26.3063]
[1724639131190,0.8185039,158.62,158.58,0.63847469]
[1724639131390,7.1229039,158.62,158.58,0.63847469]
[1724639132300,7.1229039,158.62,158.54,6.3071]
[1724639132301,30.69789605,158.61,158.54,6.3071]
[1724639132473,30.69789605,158.61,158.55,20.0]
[1724639132981,6.3052,158.6,158.55,20.0]
[1724639134681,6.3069,158.56,158.53,16.5923]
[1724639137795,6.3064,158.57,158.53,16.5923]
[1724639137997,6.3064,158.57,158.54,0.63960435]
[1724639138691,6.3064,158.57,158.53,16.5923]
[1724639139377,6.3058,158.59,158.54,0.63931886]
[1724639139590,7.1229039,158.62,158.57,6.3062]
[1724639139995,7.1229039,158.62,158.56,6.3067]
[1724639140192,6.305,158.61,158.55,6.3071]
[1724639140580,6.3057,158.59,158.54,51.3073]
[1724639140889,6.3057,158.59,158.55,20.0]
[1724639141088,6.3051,158.6,158.55,20.0]
[1724639142883,6.3051,158.6,158.56,0.63894907]
[1724639143485,6.3051,158.6,158.56,0.63894649]
[1724639143804,0.8185039,158.62,158.56,6.94564649]
[1724639143805,6.3048,158.61,158.56,6.94564649]
[1724639145102,6.3063,158.57,158.56,0.63894649]
[1724639145306,6.3063,158.57,158.53,16.5923]
[1724639145307,6.3072,158.55,158.53,16.5923]
[1724639145511,6.3067,158.56,158.53,16.5923]
[1724639145719,6.3059,158.58,158.53,16.5923]
[1724639145903,6.3063,158.57,158.53,16.5923]
[1724639146086,30.69789605,158.59,158.53,16.5923]
[1724639146087,6.3067,158.56,158.53,16.5923]
[1724639152403,30.69789605,158.61,158.54,0.63982542]
[1724639152611,16.5803039,158.62,158.54,6.94722542]
[1724639152612,6.3057,158.59,158.54,6.94722542]
[1724639152931,2.39497102,158.62,158.54,6.3074]
[1724639153214,0.8185039,158.62,158.55,45.0]
[1724639153422,0.8185039,158.62,158.54,45.0]
[1724639153622,7.1229039,158.62,158.56,6.3066]
[1724639154916,7.88122039,158.61,158.55,6.3071]
[1724639155229,6.3052,158.6,158.56,20.0]
[1724639155420,6.3048,158.61,158.56,26.3066]
[1724639156299,2.39486562,158.62,158.56,20.0]
[1724639156499,6.3048,158.61,158.56,20.0]
[1724639157324,7.1232039,158.62,158.56,26.3064]
[1724639158120,0.8185039,158.62,158.56,20.0]
[1724639158307,0.8185039,158.62,158.58,6.3055]
[1724639158821,0.8185039,158.62,158.59,6.94389438]
[1724639158993,0.8185039,158.62,158.54,45.0]
[1724639159189,7.1232039,158.62,158.56,6.3063]
[1724639159794,7.1232039,158.62,158.57,20.0]
[1724639160300,1.57616322,158.61,158.53,16.5923]
[1724639163424,7.88107481,158.61,158.56,6.3067]
[1724639164110,6.3049,158.61,158.56,6.3067]
[1724639165741,0.8185039,158.62,158.58,6.3059]
[1724639165901,0.8185039,158.62,158.59,0.63842028]
[1724639166399,0.8185039,158.62,158.6,15.8976]
[1724639166599,0.8185039,158.62,158.61,0.63761975]
[1724639166915,0.8185039,158.62,158.61,6.94231975]
[1724639167217,0.8185039,158.62,158.6,15.8976]
[1724639167407,0.8185039,158.62,158.61,6.94226044]
[1724639167616,0.8185039,158.62,158.61,26.94226044]
[1724639168014,0.8185039,158.62,158.61,26.3047]
[1724639168534,0.8185039,158.62,158.61,20.0]
[1724639169022,0.8185039,158.62,158.6,15.8976]
[1724639170535,0.8185039,158.62,158.6,22.2025]
[1724639171040,0.8185039,158.62,158.6,15.8976]
[1724639171824,0.8185039,158.62,158.61,6.3047]
[1724639172149,0.8185039,158.62,158.6,15.8976]
[1724639172806,0.8185039,158.62,158.61,6.3047]
[1724639173008,0.8185039,158.62,158.61,6.94212153]
[1724639173205,0.8185039,158.62,158.61,71.94212153]
[1724639180339,0.8185039,158.62,158.61,102.64001758]
[1724639181242,6.3011,158.71,158.66,6.3025]
[1724639181541,6.3011,158.71,158.67,0.63628153]
[1724639181906,15.0109,158.74,158.67,0.63628153]
[1724639182246,36.94009605,158.77,158.67,15.75338153]
[1724639182428,36.94009605,158.77,158.68,0.63600601]
[1724639182429,46.44669605,158.75,158.68,0.63600601]
[1724639182619,6.3007,158.72,158.68,0.63600601]
[1724639183132,30.69789605,158.75,158.68,6.93780601]
[1724639183330,30.69789605,158.75,158.68,0.63600601]
[1724639184425,30.69789605,158.71,158.64,20.0]
[1724639184625,36.99979605,158.69,158.63,16.6511]
[1724639186249,36.99979605,158.69,158.64,20.0]
[1724639186559,36.99979605,158.69,158.53,6.336]
[1724639186560,30.69789605,158.67,158.59,16.6511]
[1724639187048,6.3027,158.66,158.6,0.63775849]
[1724639187212,6.3022,158.68,158.61,6.3046]
[1724639187719,6.3022,158.68,158.59,16.6511]
[1724639187940,6.3022,158.68,158.6,45.0]
[1724639188120,6.3023,158.67,158.61,6.3043]
[1724639188317,30.69789605,158.69,158.6,45.0]
[1724639188523,6.3012,158.7,158.64,6.3032]
[1724639188753,6.3012,158.7,158.61,20.0]
[1724639188919,6.3012,158.7,158.62,45.0]
[1724639189123,6.3012,158.7,158.63,20.0]
[1724639189316,6.3008,158.71,158.64,45.0]
[1724639189823,6.3003,158.73,158.65,22.1693]
[1724639190022,6.2996,158.74,158.68,6.3019]
[1724639190438,6.3001,158.73,158.68,6.3019]
[1724639190634,6.3001,158.73,158.67,6.3022]
[1724639191017,6.3004,158.72,158.66,6.3026]
[1724639191239,6.3008,158.71,158.66,6.3026]
[1724639193238,6.3004,158.72,158.67,51.3023]
[1724639193543,6.3,158.73,158.67,51.3023]
[1724639193840,6.2996,158.74,158.68,0.63575619]
[1724639194138,6.2993,158.75,158.67,45.0]
[1724639194438,6.2993,158.75,158.68,20.0]
[1724639194635,6.2993,158.75,158.69,45.0]
[1724639195146,6.2996,158.74,158.69,51.3014]
[1724639195345,6.2992,158.75,158.69,51.3014]
[1724639196045,6.2996,158.74,158.69,51.3014]
[1724639196235,6.3,158.73,158.68,26.3019]
[1724639196431,30.69789605,158.77,158.68,20.0]
[1724639196947,6.3,158.73,158.69,0.63595167]
[1724639197334,6.3005,158.72,158.68,20.0]
[1724639197737,6.3008,158.71,158.65,22.1693]
[1724639198043,6.3008,158.71,158.65,28.4721]
[1724639198935,6.3003,158.73,158.67,6.3023]
[1724639199140,30.69789605,158.75,158.67,6.3023]
[1724639199935,17.32209668,158.76,158.65,22.1693]
[1724639199936,1.57509668,158.76,158.65,22.1693]
[1724639200260,1.57509668,158.76,158.69,6.3015]
[1724639200444,6.2999,158.74,158.66,65.0]
[1724639200836,6.2992,158.75,158.66,65.0]
[1724639201239,6.2992,158.75,158.7,6.3011]
[1724639201853,0.8185039,158.78,158.71,6.93568166]
[1724639202146,7.1165039,158.78,158.73,6.2999]
[1724639202351,0.8185039,158.78,158.74,0.63464983]
[1724639202732,0.8185039,158.78,158.72,22.0716]
[1724639202938,0.8185039,158.78,158.72,28.3719]
[1724639203752,7.1168039,158.78,158.72,28.3719]
[1724639205560,0.8185039,158.78,158.73,6.2997]
[1724639207539,7.1165039,158.78,158.72,28.3719]
[1724639208049,6.2984,158.77,158.72,22.0716]
[1724639208649,6.2984,158.77,158.72,28.3719]
[1724639208967,0.8185039,158.78,158.72,28.3719]
[1724639209340,7.1165039,158.78,158.72,28.3719]
[1724639212834,6.2995,158.75,158.72,15.9588]
[1724639213039,0.8185039,158.78,158.68,22.5573]
[1724639213256,2.39313236,158.78,158.69,65.0]
[1724639213538,0.8185039,158.78,158.69,65.0]
[1724639213754,30.69789605,158.77,158.68,28.859]
[1724639213957,6.2996,158.74,158.68,22.4931]
[1724639214165,0.8185039,158.78,158.7,6.301]
[1724639214867,30.69789605,158.75,158.64,22.2083]
[1724639215037,6.3008,158.71,158.65,6.3031]
[1724639216164,1.57530035,158.72,158.65,6.3031]
[1724639216461,1.57530035,158.72,158.64,22.2083]
[1724639216462,6.3016,158.69,158.64,16.097]
[1724639216838,6.3023,158.68,158.62,6.304]
[1724639217039,30.69789605,158.69,158.6,22.363]
[1724639217269,30.69789605,158.67,158.6,22.3579]
[1724639217646,30.69789605,158.67,158.61,6.3047]
[1724639217647,37.00019605,158.67,158.61,6.3047]
[1724639217842,6.3023,158.67,158.62,0.63732054]
[1724639218338,30.69789605,158.69,158.62,6.94162054]
[1724639218563,6.3023,158.67,158.62,6.94162054]
[1724639218748,30.69789605,158.71,158.62,0.63732054]
[1724639219542,6.3012,158.7,158.65,6.3031]
[1724639219749,6.3008,158.71,158.66,6.93949623]
[1724639220060,15.7489,158.75,158.67,6.93866019]
[1724639220061,6.3004,158.72,158.67,6.93866019]
[1724639220356,6.2999,158.74,158.68,0.63615085]
[1724639220562,6.2999,158.74,158.67,6.3022]
[1724639220563,30.69789605,158.75,158.67,6.3022]
[1724639221138,30.69789605,158.75,158.62,1.57763529]
[1724639221139,30.69789605,158.71,158.62,1.57754347]
[1724639221338,6.3016,158.69,158.64,6.3035]
[1724639221583,6.3016,158.69,158.63,6.3037]
[1724639221746,7.8779767,158.68,158.61,20.0]
[1724639222139,6.3028,158.66,158.6,16.0528]
[1724639222357,30.69789605,158.65,158.6,6.3051]
[1724639222571,38.5771275,158.65,158.6,6.3051]
[1724639222984,6.3035,158.64,158.56,22.3954]
[1724639223544,30.69789605,158.65,158.56,22.3954]
[1724639223846,37.00109605,158.65,158.57,45.0]
[1724639224567,6.3028,158.66,158.6,6.305]
[1724639224749,6.3028,158.66,158.61,0.63781603]
[1724639224950,6.3028,158.66,158.6,6.305]
[1724639225150,6.3028,158.66,158.61,6.3046]
[1724639225348,6.3028,158.66,158.62,0.63763031]
[1724639225554,6.3028,158.66,158.57,45.0]
[1724639225763,6.3028,158.66,158.58,20.63771752]
[1724639226265,6.3028,158.66,158.6,6.3048]
[1724639226570,6.3024,158.67,158.61,0.63748403]
[1724639226760,6.3024,158.67,158.58,20.0]
[1724639226968,6.3024,158.67,158.59,45.0]
[1724639227285,6.3024,158.67,158.6,20.0]
[1724639227450,6.3012,158.7,158.65,6.3029]
[1724639227649,6.3016,158.69,158.63,6.3035]
[1724639230674,6.302,158.68,158.63,6.3035]
[1724639232375,6.3015,158.7,158.64,0.63715073]
[1724639232570,6.3016,158.69,158.64,0.63715073]
[1724639233081,6.3012,158.7,158.65,6.3031]
[1724639233286,12.7071,158.72,158.66,6.93938287]
[1724639233481,6.3008,158.71,158.67,0.63664061]
[1724639234292,6.3008,158.71,158.66,6.3026]
[1724639234763,6.3008,158.71,158.67,0.63660504]
[1724639235476,6.3008,158.71,158.66,6.3026]
[1724639235788,7.87674255,158.7,158.64,6.3032]
[1724639236161,6.3013,158.7,158.64,6.3032]
[1724639236572,6.3015,158.69,158.64,6.3032]
[1724639236774,1.57557904,158.68,158.63,22.4921]
[1724639236969,30.69789605,158.71,158.63,22.4921]
[1724639237171,30.69789605,158.71,158.64,0.6372083]
[1724639237695,6.3016,158.69,158.64,0.6372083]
[1724639237897,6.3011,158.71,158.64,6.9406083]
[1724639238076,6.3011,158.71,158.65,6.93982376]
[1724639238695,6.3012,158.7,158.65,6.93982376]
[1724639239001,6.3012,158.7,158.65,6.303]
[1724639239175,6.3012,158.7,158.66,0.63689899]
[1724639239496,6.3012,158.7,158.65,6.93988527]
[1724639240405,7.87727031,158.69,158.63,22.4922]
[1724639240588,6.3022,158.68,158.63,16.1883]
[1724639240786,1.5757084,158.67,158.63,16.1883]
[1724639241296,6.3022,158.68,158.63,16.1883]
[1724639241977,1.57570362,158.67,158.63,16.1883]
[1724639242594,6.3022,158.68,158.63,22.4922]
[1724639242811,30.69789605,158.71,158.64,0.63728924]
[1724639242978,45.76189605,158.73,158.64,0.63728924]
[1724639243284,6.3011,158.71,158.66,6.3027]
[1724639243467,6.3011,158.71,158.67,0.63672662]
[1724639244511,6.3011,158.71,158.66,6.3027]
[1724639244812,6.2996,158.74,158.69,6.3015]
[1724639245113,6.3,158.73,158.68,6.3019]
[1724639245405,30.69789605,158.75,158.63,53.36549605]
[1724639245604,30.69789605,158.75,158.64,65.0]
[1724639245816,30.69789605,158.75,158.65,0.63612658]
[1724639246509,6.3,158.73,158.68,6.3016]
[1724639246811,6.2996,158.74,158.69,0.63583351]
[1724639247108,6.2996,158.74,158.69,6.93723351]
[1724639247409,6.2992,158.75,158.7,0.63584311]
[1724639247605,6.2992,158.75,158.7,6.93694311]
[1724639247822,6.2986,158.77,158.71,6.93621729]
[1724639248112,0.8185039,158.78,158.71,6.3007]
[1724639248305,6.2988,158.76,158.71,6.3007]
[1724639249210,6.2984,158.77,158.71,6.3007]
[1724639250297,2.39341623,158.78,158.7,15.8808]
[1724639250504,2.39330717,158.78,158.7,15.8808]
[1724639250689,6.2984,158.77,158.72,6.3001]
[1724639250999,6.2988,158.76,158.71,6.3007]
[1724639251195,8.68648049,158.78,158.71,6.3007]
[1724639251396,6.2985,158.77,158.71,6.3007]
[1724639253218,1.57481778,158.76,158.7,22.4347]
[1724639253517,6.2993,158.75,158.7,22.4347]
[1724639253888,6.2993,158.75,158.7,15.8808]
[1724639254517,6.2996,158.74,158.7,15.8808]
[1724639254714,6.2992,158.76,158.7,15.8808]
[1724639254892,7.87433366,158.75,158.7,15.8808]
[1724639255199,6.3001,158.73,158.68,6.3019]
[1724639255921,6.2994,158.75,158.7,6.3011]
[1724639256296,2.39373792,158.78,158.71,0.63563796]
[1724639256297,0.8185039,158.78,158.71,0.63563796]
[1724639256520,6.2984,158.77,158.72,6.3004]
[1724639258002,6.2984,158.77,158.71,6.3007]
[1724639258208,7.8736212,158.76,158.7,6.3011]
[1724639259002,6.2992,158.75,158.7,6.3011]
[1724639259796,2.39344005,158.78,158.68,20.0]
[1724639260022,6.2992,158.75,158.69,6.3012]
[1724639260715,45.8185039,158.78,158.7,20.6356491]
[1724639260920,6.2988,158.76,158.71,6.9356449]
[1724639261129,6.2984,158.77,158.71,6.9356449]
[1724639261638,7.87364896,158.76,158.71,6.3004]
[1724639261935,6.2988,158.76,158.71,6.3004]
[1724639262436,6.2997,158.74,158.69,6.3013]
[1724639262650,1.57510254,158.73,158.67,20.0]
[1724639263109,1.57523807,158.74,158.67,20.0]
[1724639263310,1.57522004,158.74,158.67,20.0]
[1724639263638,6.3,158.73,158.68,6.3019]
[1724639263940,6.3011,158.71,158.66,16.6564]
[1724639264523,6.3011,158.71,158.66,23.59583617]
[1724639265023,6.3004,158.72,158.67,6.3023]
[1724639265246,6.3004,158.72,158.68,0.63638553]
[1724639265715,1.56910552,158.74,158.66,16.6564]
[1724639265919,32.27331702,158.73,158.66,16.6564]
[1724639266224,30.69789605,158.73,158.67,0.63661233]
[1724639267515,6.3009,158.71,158.67,0.63661233]
[1724639267723,6.3009,158.71,158.66,22.9591]
[1724639269818,6.3017,158.69,158.64,6.3032]
[1724639270522,6.3017,158.69,158.65,0.6369962]
[1724639270737,1.57558055,158.71,158.65,6.3031]
[1724639270912,6.3004,158.72,158.67,6.3021]
[1724639271107,6.3,158.73,158.68,6.93818844]
[1724639271418,6.3,158.73,158.68,6.3018]
[1724639271619,37.18719605,158.77,158.69,6.93739306]
[1724639271829,30.69789605,158.77,158.69,23.33179306]
[1724639272205,30.69789605,158.77,158.69,22.6956]
[1724639272206,1.57507464,158.76,158.69,22.6956]
[1724639273010,30.69789605,158.77,158.69,22.4048]
[1724639273214,6.2992,158.75,158.7,6.3011]
[1724639274330,6.2992,158.75,158.7,6.93662807]
[1724639275132,30.69789605,158.77,158.7,0.63552807]
[1724639275133,6.2996,158.74,158.7,0.63552807]
[1724639275528,6.3,158.73,158.69,22.4048]
[1724639276531,6.3,158.73,158.69,16.3944]
[1724639276919,1.57518342,158.72,158.69,16.3944]
[1724639277134,1.57518342,158.72,158.65,21.8589]
[1724639277317,7.87572929,158.72,158.67,6.3023]
[1724639277818,6.3004,158.72,158.66,6.3027]
[1724639278023,6.3004,158.72,158.67,20.0]
[1724639278419,30.69789605,158.71,158.65,21.8589]
[1724639278908,6.3012,158.7,158.65,28.162]
[1724639279318,6.3005,158.72,158.66,0.63694171]
[1724639280235,6.3,158.73,158.66,0.63694171]
[1724639280436,6.3,158.73,158.67,6.3023]
[1724639280636,6.3,158.73,158.68,0.63620855]
[1724639281109,6.2996,158.74,158.68,0.63620855]
[1724639282111,6.2992,158.76,158.68,0.63620855]
[1724639282519,6.3,158.73,158.68,6.3017]
[1724639282839,0.8185039,158.78,158.66,20.0]
[1724639282840,30.69789605,158.74,158.67,6.3021]
[1724639283349,6.3008,158.71,158.66,20.0]
[1724639283527,36.99829605,158.72,158.66,20.63664688]
[1724639283715,6.3004,158.72,158.66,20.63664688]
[1724639284515,6.3004,158.72,158.67,6.3023]
[1724639284735,6.3004,158.72,158.68,0.63635145]
[1724639285237,1.56908394,158.71,158.65,21.8589]
[1724639285538,1.5755049,158.73,158.65,21.8589]
[1724639285737,46.5755049,158.73,158.65,21.8589]
[1724639286035,6.3016,158.69,158.65,15.3781]
[1724639286238,6.3021,158.68,158.65,15.3781]
[1724639286613,1.57572351,158.69,158.65,15.3781]
[1724639286820,7.87762351,158.69,158.65,15.3781]
[1724639287017,6.3019,158.69,158.65,15.3781]
[1724639287613,7.87756254,158.68,158.65,15.3781]
[1724639288017,6.3019,158.68,158.65,15.3781]
[1724639291532,6.3024,158.67,158.65,15.3781]
[1724639292140,45.0,158.73,158.61,22.443]
[1724639292141,6.3028,158.66,158.61,22.443]
[1724639293152,6.3032,158.65,158.61,22.443]
[1724639293345,6.3032,158.65,158.61,15.9581]
[1724639293940,30.69789605,158.66,158.61,16.59618255]
[1724639294345,37.00089605,158.66,158.61,16.59618255]
[1724639295844,6.3032,158.65,158.61,15.9581]
[1724639296547,37.00069605,158.66,158.61,16.59603943]
[1724639296751,37.00069605,158.66,158.61,15.9581]
[1724639297156,6.3028,158.66,158.62,0.63794275]
[1724639297449,6.3024,158.67,158.61,15.9581]
[1724639297664,7.87821897,158.67,158.61,15.9581]
[1724639298567,7.87821897,158.67,158.62,6.3043]
[1724639298863,6.3024,158.67,158.62,6.3043]
[1724639301767,6.3024,158.67,158.63,0.63756969]
[1724639301937,6.3024,158.67,158.62,6.3043]
[1724639302735,6.3024,158.67,158.63,0.63750025]
[1724639302941,30.69789605,158.69,158.63,0.63750025]
[1724639303143,6.3016,158.69,158.64,6.3034]
[1724639303350,6.3016,158.69,158.65,0.63712043]
[1724639304046,6.3016,158.69,158.64,6.3035]
[1724639304233,7.8776874,158.68,158.63,12.8011]
[1724639304555,6.3026,158.67,158.63,6.4972]
[1724639304850,7.87847252,158.67,158.63,6.4972]
[1724639305057,38.57636857,158.67,158.62,6.3043]
[1724639305957,30.69789605,158.65,158.61,15.9581]
[1724639306149,1.5762202,158.64,158.61,15.9581]
[1724639306665,6.3036,158.64,158.61,15.9581]
[1724639307882,30.69789605,158.68,158.61,15.9581]
[1724639308461,6.3029,158.66,158.61,22.2628]
[1724639308642,7.87918371,158.65,158.61,15.9581]
[1724639308842,6.3032,158.65,158.61,15.9581]
[1724639309264,6.3028,158.66,158.61,22.2628]
[1724639309761,7.87901382,158.65,158.61,15.9581]
[1724639309938,6.3031,158.65,158.61,15.9581]
[1724639316075,18.52986733,158.65,158.61,15.9581]
[1724639317075,12.22676733,158.65,158.61,22.2628]
[1724639320289,18.52996733,158.65,158.61,15.9581]
[1724639325970,12.22676733,158.63,158.61,15.9581]
[1724639326292,1.57621013,158.62,158.61,15.9581]
[1724639327880,20.10697307,158.63,158.61,15.9581]
[1724639328075,20.10697307,158.63,158.59,6.4972]
[1724639328394,20.10697307,158.63,158.6,1.57828508]
[1724639328695,20.10697307,158.63,158.59,6.4972]
[1724639328894,20.10697307,158.63,158.6,1.5782766]
[1724639329190,20.10697307,158.63,158.59,6.4972]
[1724639329382,20.10697307,158.63,158.6,1.57827638]
[1724639329690,18.53076733,158.63,158.59,6.4972]
[1724639329894,18.53076733,158.63,158.6,1.5782766]
[1724639330083,18.53076733,158.63,158.59,6.4972]
[1724639330285,18.53076733,158.63,158.6,1.57828486]
[1724639330495,18.53076733,158.63,158.61,1.57828486]
[1724639330676,18.53076733,158.63,158.59,6.4972]
[1724639330871,18.53076733,158.63,158.6,1.57828508]
[1724639331101,18.53076733,158.63,158.61,1.57828508]
[1724639331304,18.53076733,158.63,158.59,6.4972]
[1724639331505,18.53076733,158.63,158.6,1.57828258]
[1724639331801,18.53076733,158.63,158.61,1.57828258]
[1724639331975,18.53076733,158.63,158.59,6.4972]
[1724639332173,18.53076733,158.63,158.6,1.57828214]
[1724639332396,18.53076733,158.63,158.61,1.57828214]
[1724639332577,18.53076733,158.63,158.59,6.4972]
[1724639332771,18.53076733,158.63,158.6,1.57828463]
[1724639332977,18.53076733,158.63,158.61,1.57828463]
[1724639333193,18.53076733,158.63,158.59,6.4972]
[1724639333395,12.22676733,158.61,158.6,1.57828508]
[1724639336104,18.53146733,158.61,158.6,1.57828508]
[1724639336283,18.53146733,158.61,158.53,21.7899]
[1724639336284,57.22676733,158.61,158.53,21.7899]
[1724639336485,12.22676733,158.56,158.54,1.57874399]
[1724639336696,12.22676733,158.56,158.55,1.57874399]
[1724639337073,12.22676733,158.56,158.53,21.7899]
[1724639337393,12.22676733,158.56,158.54,1.57885027]
[1724639337596,12.22676733,158.56,158.53,21.7899]
[1724639337780,12.22676733,158.56,158.54,1.57897913]
[1724639337986,12.22676733,158.56,158.54,6.3075]
[1724639338406,12.22676733,158.58,158.54,6.3075]
[1724639339589,18.53186733,158.6,158.55,6.94664863]
[1724639340804,18.53186733,158.6,158.55,6.3069]
[1724639341392,1.56777258,158.59,158.55,6.3069]
[1724639341808,1.56777258,158.59,158.54,6.3074]
[1724639342005,12.22676733,158.58,158.54,6.3074]
[1724639342214,1.57677241,158.57,158.54,6.3074]
[1724639342785,12.22676733,158.58,158.54,6.3074]
[1724639349298,1.5767677,158.63,158.53,15.4821]
[1724639349500,6.3041,158.63,158.58,6.3059]
[1724639349700,12.22676733,158.63,158.55,1.57872764]
[1724639349909,12.22676733,158.63,158.54,20.63926964]
[1724639350111,6.3047,158.62,158.54,20.63926964]
[1724639350295,6.3047,158.62,158.55,0.63927907]
[1724639350803,18.53066733,158.64,158.58,6.3057]
[1724639351225,18.53066733,158.64,158.59,6.3055]
[1724639351921,18.53066733,158.64,158.58,0.63858821]
[1724639352097,18.53066733,158.64,158.57,6.3059]
[1724639353116,12.22676733,158.62,158.56,6.3067]
[1724639353317,1.57656072,158.61,158.56,6.3067]
[1724639354225,1.57653364,158.6,158.56,6.3067]
[1724639354407,1.57654393,158.61,158.56,6.3067]
[1724639354802,7.88124393,158.61,158.56,6.3067]
[1724639355021,1.57654118,158.6,158.56,6.3067]
[1724639355939,18.53116733,158.62,158.56,6.3067]
[1724639356309,1.5765328,158.61,158.56,6.3067]
[1724639358408,1.5765328,158.61,158.53,15.4821]
[1724639358409,12.22676733,158.58,158.53,15.4821]
[1724639358714,1.57675955,158.57,158.53,15.4821]
[1724639359412,1.57675955,158.57,158.53,21.79]
[1724639360032,12.22676733,158.58,158.53,21.79]
[1724639360232,12.22676733,158.56,158.53,15.4821]
[1724639360414,1.57698785,158.55,158.51,12.5479]
[1724639361862,7.88418785,158.55,158.49,16.0441]
[1724639362132,1.57714235,158.54,158.5,1.57914148]
[1724639362334,1.57714235,158.54,158.49,16.0441]
[1724639362510,1.57714235,158.54,158.5,20.0]
[1724639362846,13.80390968,158.54,158.5,20.0]
[1724639363009,1.5771317,158.53,158.5,20.0]
[1724639363204,1.5771317,158.53,158.49,22.3532]
[1724639363421,12.22676733,158.52,158.49,16.0441]
[1724639363614,1.57730849,158.51,158.45,16.5122]
[1724639363827,12.22676733,158.5,158.45,16.5122]
[1724639364010,1.57749356,158.49,158.45,16.5122]
[1724639364349,12.22676733,158.53,158.46,0.64157984]
[1724639365021,12.22676733,158.53,158.46,20.64157984]
[1724639365426,18.53466733,158.53,158.48,6.3099]
[1724639366028,12.22676733,158.55,158.49,6.950434]
[1724639366239,12.22676733,158.57,158.5,6.3091]
[1724639366613,27.71979022,158.6,158.51,0.64035801]
[1724639366859,6.3059,158.58,158.53,6.3075]
[1724639368749,18.53186733,158.6,158.54,6.3074]
[1724639369039,6.3059,158.58,158.52,6.308]
[1724639369420,1.57684066,158.57,158.5,6.309]
[1724639369633,1.57684066,158.57,158.51,20.0]
[1724639370128,7.88354066,158.57,158.51,6.3083]
[1724639370455,6.3067,158.57,158.51,6.94869545]
[1724639370818,6.3067,158.57,158.52,6.3083]
[1724639374332,7.88359786,158.57,158.52,6.3083]
[1724639374563,6.3067,158.57,158.52,6.3083]
[1724639377346,12.22676733,158.58,158.53,6.3078]
[1724639377551,6.3059,158.58,158.53,6.3078]
[1724639378144,6.3059,158.58,158.51,0.6402095]
[1724639378145,51.3055,158.59,158.54,6.3075]
[1724639378466,6.3055,158.59,158.54,6.3075]
[1724639380035,6.3055,158.59,158.53,6.3078]
[1724639381657,6.3055,158.59,158.53,6.94758135]
[1724639381838,6.3055,158.59,158.53,6.3078]
[1724639382351,6.3055,158.59,158.53,6.94765036]
[1724639382655,6.3055,158.59,158.53,6.3078]
[1724639384124,22.34594893,158.63,158.54,6.3071]
[1724639384327,6.3052,158.6,158.55,0.63920484]
[1724639384562,6.3052,158.6,158.52,12.22676733]
[1724639384563,6.3052,158.6,158.53,2.21830948]
[1724639384758,6.3052,158.6,158.53,0.63940319]
[1724639385258,6.3052,158.6,158.52,12.22676733]
[1724639385461,6.3052,158.6,158.55,6.3068]
[1724639394754,1.57655903,158.59,158.55,6.3068]
[1724639397070,6.3052,158.6,158.55,6.3068]
[1724639397649,7.88175922,158.6,158.55,6.3068]
[1724639398981,6.3052,158.6,158.55,6.3068]
[1724639400490,15.7571,158.66,158.56,12.86611202]
[1724639400661,22.3186,158.68,158.58,12.22676733]
[1724639400868,6.3024,158.67,158.6,12.22676733]
[1724639401059,6.3024,158.67,158.61,0.63778756]
[1724639401363,6.302,158.68,158.63,6.3039]
[1724639401958,1.5758308,158.67,158.62,1.57800371]
[1724639402162,6.3027,158.66,158.61,6.3047]
[1724639402468,13.80286689,158.66,158.59,6.3055]
[1724639402674,6.3036,158.64,158.6,1.57815264]
[1724639402870,1.57621358,158.63,158.59,6.3055]
[1724639403083,6.3036,158.64,158.59,6.3055]
[1724639403288,20.10655124,158.64,158.58,6.3059]